fUST/lending_fUST_20260128
["ID","MTS","AMOUNT","RATE_DAILY","PERIOD"]
[403852369,1769601045866,-152.09,0.000256,2]
[403852371,1769601045875,-172.98,0.000256,2]
[403852373,1769601045888,-500.0,0.00025617,2]
[403852375,1769601045901,-150.47,0.000257,2]
[403852377,1769601045910,-350.0,0.00025753,2]
[403852379,1769601045920,-500.0,0.00025754,2]
[403852380,1769601045930,-400.0,0.00025759,3]
[403852381,1769601045939,-166.82,0.000258,2]
[403852382,1769601045949,-1000.0,0.00025822,10]
[403852383,1769601045959,-1000.0,0.00025822,10]
[403852384,1769601045968,-167.0,0.0002589,7]
[403852385,1769601045977,-500.0,0.00025891,2]
[403852386,1769601045987,-9540.26328179,0.000259,7]
[403852387,1769601045996,-153.0,0.00025931,2]
[403852388,1769601046005,-801.13,0.00026,2]
[403852389,1769601046015,-20758.91659446,0.00026,10]
[403852390,1769601046024,-530.44649345,0.00026,2]
[403852391,1769601046033,-19900.0,0.00026,2]
[403852392,1769601046043,-161.0,0.00026,5]
[403852393,1769601046052,-1041.66666667,0.00026,10]
[403852394,1769601046062,-38000.0,0.00026,7]
[403852395,1769601046072,-1630.79124266,0.00026,30]
[403852396,1769601046081,-1041.66666667,0.00026,7]
[403852397,1769601046090,-160.0,0.00026,7]
[403852398,1769601046100,-38000.0,0.00026,7]
[403852399,1769601046109,-172.98,0.00026,2]
[403852400,1769601046119,-38000.0,0.00026,7]
[403852401,1769601046128,-160.0,0.00026,7]
[403852402,1769601046140,-1041.66666667,0.00026,7]
[403852403,1769601046150,-2000.0,0.00026,7]
[403852404,1769601046159,-500.0,0.00026028,2]
[403852405,1769601046168,-400.0,0.00026079,3]
[403852406,1769601046178,-158.63,0.000261,2]
[403852407,1769601046187,-11040.2,0.000261,2]
[403852408,1769601046196,-194.86394514,0.0002616,2]
[403852409,1769601046205,-500.0,0.00026165,2]
[403852410,1769601046215,-152.09,0.000262,2]
[403852411,1769601046224,-260.27,0.000262,7]
[403852412,1769601046233,-4683.12,0.000262,14]
[403852413,1769601046242,-2150.0,0.00026222,2]
[403852414,1769601046251,-630.0,0.00026222,2]
[403852415,1769601046260,-1369.0,0.00026222,2]
[403852416,1769601046269,-801.13,0.000263,2]
[403852417,1769601046278,-586.34,0.000263,7]
[403852418,1769601046287,-500.63898669,0.00026301,2]
[403852419,1769601046296,-500.0,0.00026302,2]
[403852420,1769601046305,-150.47,0.000264,2]
[403852421,1769601046314,-172.98,0.000264,2]
[403852422,1769601046323,-400.0,0.00026437,3]
[403852423,1769601046332,-400.0,0.00026437,3]
[403852424,1769601046341,-500.0,0.00026439,2]
[403852425,1769601046350,-500.0,0.00026576,2]
[403852426,1769601046359,-801.13,0.000267,2]
[403852427,1769601046368,-515.81424765,0.00026713,2]
[403852428,1769601046377,-13305.84405285,0.0002675,2]
[403852429,1769601046387,-728.0,0.00026757,3]
[403852430,1769601046396,-172.98,0.000268,2]
[403852431,1769601046405,-152.09,0.000269,2]
[403852432,1769601046414,-1025.77308519,0.000269,2]
[403852433,1769601046423,-184.26116347,0.00027,30]
[403852434,1769601046432,-150.47,0.00027,2]
[403852435,1769601046442,-166.82,0.00027,2]
[403852436,1769601046450,-1041.66666667,0.00027,30]
[403852437,1769601046463,-509.0,0.00027064,7]
[403852438,1769601046476,-801.13,0.000271,2]
[403852439,1769601046488,-167.0,0.00027185,7]
[403852440,1769601046500,-911.96622121,0.00027281,2]
[403852441,1769601046512,-172.98,0.000273,2]
[403852442,1769601046522,-394.79541189,0.0002739,7]
[403852443,1769601046533,-150.0,0.0002739,2]
[403852444,1769601046545,-249.25290045,0.00027397,2]
[403852445,1769601046556,-151.0,0.00027397,7]
[403852446,1769601046568,-151.0,0.00027397,7]
[403852447,1769601046580,-151.0,0.00027397,7]
[403852448,1769601046593,-151.0,0.00027397,7]
[403852449,1769601046604,-151.0,0.00027397,7]
[403852450,1769601046616,-151.0,0.00027397,7]
[403852451,1769601046628,-151.0,0.00027397,7]
[403852452,1769601046642,-151.0,0.00027397,7]
[403852453,1769601046654,-181.945001,0.00027397,7]
[403852454,1769601046666,-151.0,0.00027397,7]
[403852455,1769601046676,-151.0,0.00027397,7]
[403852456,1769601046688,-151.0,0.00027397,7]
[403852457,1769601046699,-205.25,0.00027397,7]
[403852458,1769601046710,-500.0,0.00027397,5]
[403852459,1769601046720,-516.41838477,0.00027397,5]
[403852460,1769601046735,-157.68060397,0.00027397,5]
[403852461,1769601046747,-150.0,0.00027397,5]
[403852462,1769601046758,-11040.2,0.000274,2]
[403852463,1769601046769,-160.0,0.00027422,3]
[403852464,1769601046782,-801.13,0.000275,2]
[403852465,1769601046793,-46002.13647137,0.000275,2]
[403852466,1769601046804,-152.09,0.000275,2]
[403852467,1769601046816,-172.01,0.000275,7]
[403852469,1769601046827,-260.27,0.000275,7]
[403852470,1769601046838,-4683.12,0.000275,14]
[403852471,1769601046849,-730.0,0.00027531,3]
[403852472,1769601046861,-400.0,0.00027531,3]
[403852473,1769601046873,-150.47,0.000276,2]
[403852474,1769601046887,-586.34,0.000276,7]
[403852475,1769601046900,-6013.49920833,0.00027602,16]
[403852476,1769601046912,-5000.0,0.00027602,15]
[403852477,1769601046924,-5000.0,0.00027602,17]
[403852478,1769601046937,-5000.0,0.00027602,12]
[403852479,1769601046949,-5000.0,0.00027602,14]
[403852480,1769601046960,-730.0,0.00027662,3]
[403852481,1769601046970,-172.98,0.000277,2]
[403852482,1769601046980,-4100.39525615,0.00027738,15]
[403852483,1769601046990,-5000.0,0.00027738,17]
[403852484,1769601047002,-1000.0,0.00027777,5]
[403852485,1769601047015,-400.0,0.00027851,3]
[403852486,1769601047028,-801.13,0.000279,2]
[403852487,1769601047041,-1021.0,0.000279,2]
[403852488,1769601047051,-161.0,0.00027925,3]
[403852489,1769601047062,-1000.0,0.00027945,5]
[403852490,1769601047073,-250.0,0.00027945,5]
[403852491,1769601047084,-9953.46592972,0.00028,2]
[403852492,1769601047207,-5381.07061621,0.00028,2]
[403852493,1769601047217,-1995.85564575,0.00028,30]
[403852494,1769601047228,-2767.882622,0.00028,2]
[403852495,1769601047238,-2000.0,0.00028,7]
[403852496,1769601047249,-730.0,0.00028056,3]
[403852497,1769601047259,-400.0,0.00028056,3]
[403852499,1769601047269,-158.63,0.000281,2]
[403852500,1769601047280,-172.98,0.000281,2]
[403852502,1769601047290,-500.0,0.00028117,7]
[403852503,1769601047302,-170.0,0.00028164,28]
[403852504,1769601047312,-730.0,0.00028171,3]
[403852505,1769601047323,-801.13,0.000282,2]
[403852506,1769601047333,-152.09,0.000282,2]
[403852507,1769601047344,-150.47,0.000282,2]
[403852508,1769601047355,-400.0,0.00028245,3]
[403852509,1769601047365,-292.58061118,0.00028268,14]
[403852510,1769601047378,-6956.28849142,0.00028268,14]
[403852511,1769601047389,-5000.0,0.00028268,18]
[403852512,1769601047399,-5000.0,0.00028268,19]
[403852513,1769601047410,-5000.0,0.00028268,15]
[403852514,1769601047421,-5000.0,0.00028268,20]
[403852515,1769601047431,-166.82,0.000283,2]
[403852516,1769601047442,-218.27018368,0.00028301,30]
[403852517,1769601047454,-10733.76361554,0.00028386,2]
[403852518,1769601047465,-1000.0,0.00028404,30]
[403852519,1769601047475,-1000.0,0.00028404,30]
[403852520,1769601047484,-579.0,0.00028404,30]
[403852521,1769601047493,-500.0,0.00028432,7]
[403852522,1769601047502,-218.27018368,0.00028438,30]
[403852523,1769601047511,-400.0,0.00028491,3]
[403852524,1769601047521,-1351.18989582,0.00028493,5]
[403852525,1769601047531,-350.0,0.00028493,5]
[403852526,1769601047540,-149135.30283073,0.000285,7]
[403852527,1769601047590,-151.0,0.00019178,2]
[403852528,1769601047600,-151.0,0.00019178,2]
[403852529,1769601047609,-151.0,0.00019178,2]
[403852530,1769601047618,-151.0,0.00019178,2]
[403852531,1769601047627,-151.0,0.00019178,2]
[403852532,1769601047636,-151.0,0.00019178,2]
[403852533,1769601047645,-29549.45815628,0.000285,7]
[403852534,1769601047663,-151.0,0.00019178,2]
[403852535,1769601047671,-553.18039797,0.000285,7]
[403852536,1769601047683,-5269.74034417,0.000285,7]
[403852537,1769601047948,-151.0,0.00019178,2]
[403852538,1769601047964,-151.0,0.00019178,2]
[403852539,1769601047975,-151.0,0.00019178,2]
[403852540,1769601047985,-151.0,0.00019178,2]
[403852541,1769601047994,-151.0,0.00019178,2]
[403852542,1769601048003,-151.0,0.00019178,2]
[403852543,1769601048013,-151.0,0.00019178,2]
[403852544,1769601048022,-151.0,0.00019178,2]
[403852545,1769601048031,-151.0,0.00019178,2]
[403852546,1769601048040,-253.42086,0.00019178,2]
[403852547,1769601048049,-1263.1855115,0.00027986,30]
[403852548,1769601048059,-1835.51689353,0.000285,7]
[403852549,1769601048070,-55555.91720839,0.000285,7]
[403852550,1769601048082,-13098.34869828,0.000285,7]
[403852551,1769601048131,-1075.6164,0.000285,7]
[403852552,1769601048142,-1075.6164,0.000285,7]
[403852553,1769601064260,221.95297595,0.00034921,120]
[403852555,1769601159652,-300.0,0.00012638,2]
[403852556,1769601159683,-300.0,0.00012638,2]
[403852557,1769601159714,-300.0,0.00012638,2]
[403852558,1769601159748,-300.0,0.00012638,2]
[403852559,1769601159782,-300.0,0.00012638,2]
[403852560,1769601159815,-300.0,0.00012638,2]
[403852561,1769601159847,-300.0,0.00012638,2]
[403852562,1769601159876,-300.0,0.00012638,2]
[403852563,1769601159908,-300.0,0.00012638,2]
[403852564,1769601159941,-300.0,0.00012638,2]
[403852565,1769601159972,-300.0,0.00012638,2]
[403852566,1769601160013,-300.0,0.00012638,2]
[403852567,1769601160047,-300.0,0.00012638,2]
[403852568,1769601160078,-300.0,0.00012638,2]
[403852569,1769601160110,-300.0,0.00012638,2]
[403852570,1769601160144,-400.01,0.00012638,2]
[403852571,1769601166357,-5013.5626867,0.00012292,2]
[403852572,1769601169210,-10000.01,0.00012292,2]
[403852579,1769601297747,500.0,0.00028499,120]
[403852580,1769601298006,500.0,0.00028499,120]
[403852581,1769601298232,500.0,0.00028499,120]
[403852582,1769601298488,500.0,0.00028499,120]
[403852583,1769601298737,500.0,0.00028749,120]
[403852584,1769601298996,500.0,0.00028759,120]
[403852585,1769601299247,500.0,0.00028918,120]
[403852586,1769601299518,500.0,0.00029221,120]
[403852587,1769601299763,500.0,0.00029999,120]
[403852588,1769601299992,500.0,0.00029999,120]
[403852589,1769601300399,500.0,0.00029999,120]
[403852590,1769601300476,500.0,0.00029999,120]
[403852591,1769601300748,500.0,0.00029999,120]
[403852592,1769601301018,500.0,0.00029999,120]
[403852593,1769601301267,500.0,0.00030059,120]
[403852595,1769601384700,1000.0,0.00034939,120]
[403852596,1769601384937,1000.0,0.00034939,120]
[403852597,1769601385176,261.11242623,0.00034939,120]
[403852598,1769601435197,370.0,0.0003013,120]
[403852599,1769601605888,496.23,0.0001,2]
[403852600,1769601606506,496.23,0.000104,2]
[403852601,1769601607215,496.23,0.000108,2]
[403852603,1769601765405,704.0,0.00010904,2]
[403852604,1769601818879,330.90993751,0.00010904,2]
[403852610,1769602142469,1049.8808252,0.00010904,2]
[403852611,1769602144712,543.0,0.00030136,120]
[403852612,1769602205273,165.34,0.0001,2]
[403852653,1769602232097,-401.8337041,0.00011172,2]
[403852655,1769602232106,-577.0,0.00011172,2]
[403852657,1769602232117,-496.23,0.000112,2]
[403852659,1769602232126,-496.23,0.000116,2]
[403852661,1769602232136,-1452.70393971,0.00012099,2]
[403852663,1769602232146,-496.23,0.000121,2]
[403852665,1769602232155,-8719.13178743,0.00012192,2]
[403852667,1769602232166,-11706.01397739,0.00012192,2]
[403852669,1769602232177,-564.78395186,0.00012192,2]
[403852671,1769602232188,-1392.66568301,0.00012192,2]
[403852673,1769602232200,-525.06757274,0.00012192,2]
[403852727,1769602238355,-1697092.33702757,0.00012192,2]
[403852730,1769602238365,-1200.0,0.00012199,2]
[403852732,1769602238375,-7506.87052315,0.000122,2]
[403852734,1769602238385,-194.0,0.00012289,2]
[403852735,1769602238395,-300.0,0.00012289,2]
[403852738,1769602238404,-500.0,0.00012291,2]
[403852740,1769602238414,-500.0,0.00012291,2]
[403852741,1769602238424,-500.0,0.00012291,2]
[403852743,1769602238433,-500.0,0.00012291,2]
[403852745,1769602238444,-470.39586687,0.00012291,2]
[403852748,1769602238454,-500.0,0.00012291,2]
[403852749,1769602238463,-500.0,0.00012291,2]
[403852751,1769602238473,-500.0,0.00012291,2]
[403852753,1769602238482,-500.0,0.00012291,2]
[403852756,1769602238492,-500.0,0.00012291,2]
[403852758,1769602238501,-500.0,0.00012291,2]
[403852761,1769602238520,-500.0,0.00012291,2]
[403852763,1769602238531,-500.0,0.00012291,2]
[403852765,1769602238541,-183.07894872,0.00012291,2]
[403852767,1769602238550,-500.0,0.00012291,2]
[403852769,1769602238560,-496.23,0.000125,2]
[403852771,1769602238569,-300.0,0.00012536,2]
[403852773,1769602238578,-300.0,0.00012536,2]
[403852775,1769602238588,-300.0,0.00012536,2]
[403852777,1769602238598,-300.0,0.00012536,2]
[403852779,1769602238608,-300.0,0.00012536,2]
[403852781,1769602238617,-300.0,0.00012536,2]
[403852783,1769602238627,-300.0,0.00012536,2]
[403852785,1769602238637,-300.0,0.00012536,2]
[403852787,1769602238647,-300.0,0.00012536,2]
[403852789,1769602238656,-300.0,0.00012536,2]
[403852791,1769602238665,-300.0,0.00012536,2]
[403852793,1769602238675,-300.0,0.00012536,2]
[403852794,1769602238684,-300.0,0.00012536,2]
[403852795,1769602238694,-300.0,0.00012536,2]
[403852796,1769602238704,-300.0,0.00012536,2]
[403852797,1769602238713,-600.0,0.00012536,2]
[403852798,1769602238722,-496.23,0.000129,2]
[403852799,1769602238732,-9392.04316365,0.000129,2]
[403852800,1769602238741,-500.0,0.00012999,2]
[403852801,1769602238751,-150.0,0.00012999,2]
[403852802,1769602238761,-150.0,0.00012999,2]
[403852803,1769602238770,-150.0,0.00012999,2]
[403852804,1769602238780,-150.0,0.00012999,2]
[403852805,1769602238789,-150.0,0.00012999,2]
[403852806,1769602238798,-200.57111926,0.00012999,2]
[403852807,1769602238808,-150.0,0.00012999,2]
[403852808,1769602238818,-150.0,0.00012999,2]
[403852809,1769602238827,-500.0,0.00013136,2]
[403852810,1769602238837,-150.0,0.00013136,2]
[403852811,1769602238846,-150.0,0.00013136,2]
[403852812,1769602238855,-150.0,0.00013136,2]
[403852813,1769602238865,-195.23500925,0.00013136,2]
[403852814,1769602238874,-150.0,0.00013136,2]
[403852815,1769602238884,-150.0,0.00013136,2]
[403852816,1769602238893,-474.16377084,0.00013172,2]
[403852817,1769602238903,-501.125497,0.00013273,2]
[403852818,1769602238912,-232.87999681,0.00013273,2]
[403852819,1769602238922,-502.91668404,0.00013273,2]
[403852820,1769602238931,-500.0,0.00013273,2]
[403852821,1769602238942,-500.0,0.00013273,2]
[403852822,1769602238952,-504.34170429,0.00013273,2]
[403852823,1769602238961,-501.16992711,0.00013273,2]
[403852824,1769602238971,-470.12746808,0.00013273,2]
[403852825,1769602238980,-180.08535491,0.00013273,2]
[403852826,1769602238990,-500.0,0.00013273,2]
[403852827,1769602238999,-500.0,0.00013273,2]
[403852828,1769602239008,-500.0,0.00013273,2]
[403852829,1769602239018,-500.0,0.00013273,2]
[403852830,1769602239027,-500.0,0.00013273,2]
[403852831,1769602239037,-500.0,0.00013273,2]
[403852832,1769602239047,-200.0,0.00013273,2]
[403852833,1769602239055,-200.34117545,0.00013273,2]
[403852834,1769602239064,-250.0,0.00013273,2]
[403852835,1769602239074,-496.23,0.000133,2]
[403852836,1769602239084,-500.0,0.0001341,2]
[403852837,1769602239093,-420.0,0.00013487,2]
[403852838,1769602239104,-500.0,0.00013547,2]
[403852839,1769602239114,-300.0,0.00013673,2]
[403852840,1769602239123,-500.0,0.00013684,2]
[403852841,1769602239132,-500.0,0.00013698,2]
[403852842,1769602239143,-500.0,0.00013698,2]
[403852843,1769602239152,-231.9426637,0.00013698,2]
[403852844,1769602239162,-493.63025993,0.00013698,2]
[403852845,1769602239174,-756.27,0.00013698,2]
[403852846,1769602239184,-756.27,0.00013698,2]
[403852847,1769602239194,-756.27,0.00013698,2]
[403852848,1769602239204,-756.27,0.00013698,2]
[403852849,1769602239213,-756.27,0.00013698,2]
[403852850,1769602239222,-756.27,0.00013698,2]
[403852851,1769602239232,-756.27,0.00013698,2]
[403852852,1769602239241,-756.27,0.00013698,2]
[403852853,1769602239251,-756.27,0.00013698,2]
[403852854,1769602239260,-756.27,0.00013698,2]
[403852855,1769602239271,-756.27,0.00013698,2]
[403852856,1769602239281,-756.27,0.00013698,2]
[403852857,1769602239290,-756.27,0.00013698,2]
[403852858,1769602239299,-756.27,0.00013698,2]
[403852859,1769602239308,-756.27,0.00013698,2]
[403852860,1769602239318,-756.27,0.00013698,2]
[403852861,1769602239328,-756.27,0.00013698,2]
[403852862,1769602239337,-756.27,0.00013698,2]
[403852863,1769602239346,-756.27,0.00013698,2]
[403852864,1769602239359,-756.27,0.00013698,2]
[403852865,1769602239368,-756.27,0.00013698,2]
[403852866,1769602239378,-756.27,0.00013698,2]
[403852867,1769602239388,-756.27,0.00013698,2]
[403852868,1769602239397,-756.41785257,0.00013698,2]
[403852869,1769602239406,-500.0,0.00013698,2]
[403852870,1769602239417,-500.0,0.00013698,2]
[403852871,1769602239426,-500.0,0.00013698,2]
[403852872,1769602239435,-500.0,0.00013698,2]
[403852873,1769602239445,-500.0,0.00013698,2]
[403852874,1769602239455,-500.0,0.00013698,2]
[403852875,1769602239464,-500.0,0.00013698,2]
[403852876,1769602239473,-500.0,0.00013698,2]
[403852877,1769602239482,-500.0,0.00013698,2]
[403852878,1769602239491,-500.0,0.00013698,2]
[403852879,1769602239501,-245.05641761,0.00013698,2]
[403852880,1769602239511,-500.0,0.00013698,2]
[403852881,1769602239521,-500.0,0.00013698,2]
[403852882,1769602239531,-500.0,0.00013698,2]
[403852883,1769602239541,-500.0,0.00013698,2]
[403852884,1769602239550,-500.0,0.00013698,2]
[403852885,1769602239560,-500.0,0.00013698,2]
[403852886,1769602239569,-500.0,0.00013698,2]
[403852887,1769602239579,-500.0,0.00013698,2]
[403852888,1769602239590,-500.0,0.00013698,2]
[403852889,1769602239600,-321.00935932,0.00013698,2]
[403852890,1769602239609,-500.0,0.00013698,2]
[403852891,1769602239619,-500.0,0.00013698,2]
[403852892,1769602239628,-500.0,0.00013698,2]
[403852893,1769602239638,-199.72375222,0.00013698,2]
[403852894,1769602239647,-500.0,0.00013698,2]
[403852895,1769602239656,-500.0,0.00013698,2]
[403852896,1769602239665,-520.34475145,0.00013698,2]
[403852898,1769602239675,-1000.0,0.00013699,2]
[403852899,1769602239685,-500.0,0.00013699,2]
[403852900,1769602239694,-500.0,0.00013699,2]
[403852901,1769602239703,-500.0,0.00013699,2]
[403852902,1769602239713,-500.0,0.00013699,2]
[403852903,1769602239722,-500.0,0.00013699,2]
[403852905,1769602239732,-500.0,0.00013699,2]
[403852907,1769602239741,-532.28183888,0.00013699,2]
[403852908,1769602239750,-500.0,0.00013699,2]
[403852909,1769602239760,-500.0,0.00013699,2]
[403852910,1769602239769,-260.16839164,0.00013699,2]
[403852911,1769602239779,-500.0,0.00013699,2]
[403852912,1769602239789,-500.0,0.00013699,2]
[403852913,1769602239798,-213.84661778,0.00013699,2]
[403852914,1769602239807,-500.0,0.00013699,2]
[403852915,1769602239816,-445.1362178,0.00013699,2]
[403852916,1769602239825,-500.0,0.00013699,2]
[403852917,1769602239835,-320.04248703,0.00013699,2]
[403852918,1769602239844,-443.49274844,0.00013699,2]
[403852919,1769602239854,-506.10991888,0.00013699,2]
[403852920,1769602239863,-500.0,0.00013699,2]
[403852921,1769602239872,-500.0,0.00013699,2]
[403852922,1769602239881,-500.0,0.00013699,2]
[403852923,1769602239890,-500.0,0.00013699,2]
[403852924,1769602239900,-500.0,0.00013699,2]
[403852925,1769602239909,-500.41621604,0.00013699,2]
[403852926,1769602239918,-500.0,0.00013699,2]
[403852927,1769602239928,-500.0,0.00013699,2]
[403852928,1769602239938,-500.0,0.00013699,2]
[403852930,1769602239948,-500.0,0.00013699,2]
[403852931,1769602239957,-500.0,0.00013699,2]
[403852932,1769602239967,-500.0,0.00013699,2]
[403852933,1769602239977,-500.0,0.00013699,2]
[403852934,1769602239986,-500.0,0.00013699,2]
[403852935,1769602239995,-500.0,0.00013699,2]
[403852936,1769602240004,-150.0,0.00013699,2]
[403852937,1769602240014,-500.0,0.00013699,2]
[403852938,1769602240027,-500.0,0.00013699,2]
[403852939,1769602240036,-500.0,0.00013699,2]
[403852940,1769602240046,-500.0,0.00013699,2]
[403852941,1769602240055,-501.77042598,0.00013699,2]
[403852942,1769602240066,-500.0,0.00013699,2]
[403852943,1769602240076,-501.93478625,0.00013699,2]
[403852944,1769602240087,-496.23,0.000137,2]
[403852945,1769602240098,-720.0,0.00013789,2]
[403852946,1769602240107,-1000.0,0.00013821,2]
[403852947,1769602240117,-1000.0,0.00013821,2]
[403852948,1769602240127,-1000.0,0.00013821,2]
[403852949,1769602240138,-1000.0,0.00013821,2]
[403852950,1769602240147,-1000.0,0.00013821,2]
[403852951,1769602240158,-1000.0,0.00013821,2]
[403852952,1769602240169,-500.0,0.00013821,2]
[403852953,1769602240179,-500.0,0.00013958,2]
[403852954,1769602240188,-206.36876951,0.00013989,2]
[403852955,1769602240198,-160.09522763,0.00014005,2]
[403852956,1769602240208,-100000.0,0.00014006,2]
[403852958,1769602240217,-500.0,0.00014095,2]
[403852960,1769602240226,-496.23,0.000141,2]
[403852961,1769602240236,-600.0,0.00014221,2]
[403852963,1769602240245,-500.0,0.00014232,2]
[403852965,1769602240255,-928.72037754,0.00014247,2]
[403852967,1769602240264,-172.30391573,0.00014247,2]
[403852969,1769602240273,-653.67992137,0.00014247,2]
[403852971,1769602240283,-1000.0,0.00014247,2]
[403852973,1769602240293,-175.49146446,0.00014247,2]
[403852975,1769602240302,-626.86038304,0.00014247,2]
[403852977,1769602240311,-1146.16076302,0.00014247,2]
[403852978,1769602240321,-898.31661661,0.00014247,2]
[403852979,1769602240331,-1000.0,0.00014247,2]
[403852980,1769602240340,-1000.0,0.00014247,2]
[403852982,1769602240350,-1003.36640104,0.00014247,2]
[403852984,1769602240359,-800.60461598,0.00014247,2]
[403852985,1769602240368,-501.75253763,0.00014247,2]
[403852987,1769602240377,-1000.0,0.00014247,2]
[403852989,1769602240387,-508.49522103,0.00014247,2]
[403852991,1769602240398,-1001.40716094,0.00014247,2]
[403852993,1769602240407,-1000.0,0.00014247,2]
[403852994,1769602240416,-1000.0,0.00014247,2]
[403852995,1769602240425,-722.3651231,0.00014247,2]
[403852996,1769602240434,-505.03835844,0.00014247,2]
[403852997,1769602240443,-1002.16076125,0.00014247,2]
[403852998,1769602240453,-1134.23032778,0.00014247,2]
[403852999,1769602240462,-653.47281249,0.00014247,2]
[403853000,1769602240473,-1000.0,0.00014247,2]
[403853001,1769602240482,-501.67094293,0.00014247,2]
[403853002,1769602240492,-502.14214416,0.00014247,2]
[403853004,1769602240501,-250.0,0.00014247,2]
[403853006,1769602240510,-509.85507396,0.00014247,2]
[403853007,1769602240519,-159.31465189,0.00014247,2]
[403853008,1769602240528,-378.71570647,0.00014247,2]
[403853009,1769602240538,-501.48666107,0.00014247,2]
[403853011,1769602240548,-1500.0,0.00014368,2]
[403853013,1769602240557,-1500.0,0.00014368,2]
[403853016,1769602240566,-1500.0,0.00014368,2]
[403853019,1769602240575,-1500.0,0.00014368,2]
[403853022,1769602240585,-1500.0,0.00014368,2]
[403853024,1769602240594,-1500.0,0.00014368,2]
[403853026,1769602240603,-513.24821694,0.00014369,2]
[403853028,1769602240612,-496.23,0.000145,2]
[403853030,1769602240621,-250.0,0.00014592,2]
[403853032,1769602240631,-7506.87052314,0.00014729,2]
[403853034,1769602240640,-900.0,0.00014768,2]
[403853036,1769602240649,-653.26549201,0.00014795,2]
[403853038,1769602240658,-1002.75778254,0.00014795,2]
[403853040,1769602240668,-1196.49020811,0.00014795,2]
[403853042,1769602240677,-1026.28781016,0.00014795,2]
[403853044,1769602240687,-1000.68775555,0.00014795,2]
[403853046,1769602240698,-1000.0,0.00014795,2]
[403853048,1769602240708,-1500.0,0.00014795,2]
[403853050,1769602240717,-300.0,0.00014795,2]
[403853052,1769602240726,-587.0,0.00014801,2]
[403853054,1769602240735,-496.23,0.000149,2]
[403853056,1769602240744,-2111.71757987,0.00014916,2]
[403853058,1769602240753,-2000.0,0.00014916,2]
[403853060,1769602240763,-2000.0,0.00014916,2]
[403853062,1769602240772,-2000.0,0.00014916,2]
[403853064,1769602240781,-2000.0,0.00014916,2]
[403853066,1769602240791,-2000.0,0.00014916,2]
[403853068,1769602240800,-864.0,0.00015168,2]
[403853070,1769602240809,-546.49383758,0.00015172,2]
[403853072,1769602240819,-496.23,0.000153,2]
[403853074,1769602240828,-1203.02799168,0.00015316,2]
[403853076,1769602240838,-1512.54102297,0.00015342,2]
[403853078,1769602240847,-9392.0431636,0.00015452,2]
[403853080,1769602240856,-1000.0,0.00015464,2]
[403853082,1769602240865,-2500.0,0.00015464,2]
[403853084,1769602240874,-2506.71511543,0.00015464,2]
[403853086,1769602240884,-2500.0,0.00015464,2]
[403853088,1769602240893,-1500.0,0.00015464,2]
[403853106,1769602241036,-1369.0,0.00015549,2]
[403853107,1769602241067,-630.0,0.00015549,2]